fUSD/lending_fUSD_20240525
["ID","MTS","AMOUNT","RATE_DAILY","PERIOD"]
[327910806,1716615034606,-200.0,0.00012895,2]
[327910807,1716615034615,-200.0,0.00012896,2]
[327910808,1716615034625,-500.0,0.00012896,2]
[327910809,1716615034637,-210.8378,0.00012898,2]
[327910810,1716615034647,-2967.0059,0.00012898,2]
[327910811,1716615034657,-7014.37615912,0.000129,2]
[327910812,1716615034666,-1021.7617,0.000129,2]
[327910813,1716615034676,-1077.2597,0.000129,2]
[327910814,1716615034686,-169.0539,0.000129,2]
[327910815,1716615034696,-4965.0896,0.000129,2]
[327910816,1716615034705,-153.86904226,0.000129,2]
[327910818,1716615034714,-167.93667038,0.000129,2]
[327910820,1716615034724,-892.98819286,0.000129,2]
[327910822,1716615034734,-209.64787819,0.000129,2]
[327910824,1716615034744,-2535.98884783,0.000129,2]
[327910826,1716615034754,-180.35497538,0.000129,2]
[327910828,1716615034764,-1043.0,0.000129,2]
[327910830,1716615034773,-330.15194708,0.000129,2]
[327910832,1716615034783,-221.78661498,0.000129,2]
[327910833,1716615034793,-4014.3085762,0.00012989,2]
[327910834,1716615034802,-10255.9967709,0.00012989,2]
[327910835,1716615034812,-1543.76292,0.00012989,2]
[327910836,1716615034822,-593.5986642,0.00012989,2]
[327910837,1716615034831,-151.22,0.0001299,2]
[327910838,1716615034841,-151.22,0.0001299,2]
[327910839,1716615034851,-151.22,0.0001299,2]
[327910840,1716615034860,-151.22,0.0001299,2]
[327910841,1716615034870,-151.22,0.0001299,2]
[327910842,1716615034880,-151.22,0.0001299,2]
[327910843,1716615034889,-151.22,0.0001299,2]
[327910844,1716615034898,-151.22,0.0001299,2]
[327910845,1716615034908,-185.30785576,0.0001299,2]
[327910846,1716615034918,-185.30785576,0.0001299,2]
[327910847,1716615034928,-794.21166416,0.00012998,2]
[327910848,1716615034938,-158.65950169,0.00012998,2]
[327910849,1716615034949,-207.79137545,0.00012998,2]
[327910850,1716615034958,-2717.0722721,0.00012998,2]
[327910851,1716615034968,-453.58615877,0.00012998,2]
[327910852,1716615034980,-355.34,0.00012998,2]
[327910853,1716615034992,-482.99531256,0.00012998,2]
[327910854,1716615035017,-661.68277074,0.00012998,2]
[327910855,1716615035028,-299.99,0.00012998,2]
[327910856,1716615035040,-3027.88708752,0.00012998,2]
[327910857,1716615035049,-229.21664522,0.00012998,2]
[327910858,1716615035059,-132.61418755,0.00012998,2]
[327910859,1716615035071,-795.00263647,0.00012998,2]
[327910860,1716615035110,-286.24604566,0.00012998,2]
[327910861,1716615035120,-406.83927726,0.00012998,2]
[327910862,1716615035129,-783.16314022,0.00012998,2]
[327910863,1716615035139,-155.23607019,0.00012998,2]
[327910864,1716615035148,-196.32548882,0.00012998,2]
[327910865,1716615035158,-8774.57321923,0.00012998,2]
[327910866,1716615035232,172.93,0.00012109,2]
[327910867,1716615038296,-1003.64939934,0.00012998,2]
[327910868,1716615038585,-965.16968045,0.00012998,2]
[327910869,1716615038596,-328.16762676,0.00012998,2]
[327910870,1716615038605,-883.61486605,0.00012998,2]
[327910871,1716615038615,-2839.32279278,0.00012999,2]
[327910872,1716615038624,-150.0,0.00012999,2]
[327910873,1716615038635,-150.0,0.00012999,2]
[327910874,1716615038645,-151.98634986,0.00012999,2]
[327910875,1716615038654,-153035.19842815,0.00013,2]
[327910882,1716615041133,-18857.80185052,0.00013,2]
[327910883,1716615041145,-1348.93631751,0.00013,2]
[327910884,1716615041157,-265.3279233,0.00013,2]
[327910885,1716615041298,-208130.32033279,0.00013,2]
[327910886,1716615041310,-178428.55144315,0.00013,2]
[327910887,1716615041322,-3105.81486946,0.00013,2]
[327910888,1716615041334,-360.06,0.00013,2]
[327910905,1716615043277,-1259.9796395,0.00013,2]
[327910907,1716615043488,-155.03084564,0.000129,2]
[327910908,1716615043498,-1734.05507851,0.00013,2]
[327910909,1716615043510,-7586.06400006,0.00013,2]
[327910910,1716615043522,-2599.5165524,0.00013,2]
[327910911,1716615043984,-4163.87130934,0.00013,2]
[327910913,1716615043998,-13401.1578322,0.00013,2]
[327910914,1716615044011,-400.74216588,0.00013,2]
[327910916,1716615044023,-599.64284748,0.00013,2]
[327910918,1716615044035,-6006.70559989,0.00013,2]
[327910919,1716615044046,-1511.72731573,0.00013,2]
[327910920,1716615044058,-10723.82025706,0.00013,2]
[327910938,1716615046422,-259.08174527,0.00012999,2]
[327910940,1716615046433,-155.91687582,0.00012999,2]
[327910942,1716615046443,-1893.78661747,0.00013,2]
[327910944,1716615046455,-1165.14432579,0.00013,2]
[327910946,1716615046767,-49851.35493691,0.00013,2]
[327910949,1716615046787,-5676.85017472,0.00013,2]
[327910969,1716615080895,157.69055943,0.00011554,2]
[327910970,1716615081867,19741.49598061,0.00012162,2]
[327910971,1716615095821,13165.63839407,0.00012162,2]
[327910973,1716615199076,1000.0,0.00030567,120]
[327910974,1716615245811,204.88,0.00010257,2]
[327910975,1716615338294,250.0,0.00012134,2]
[327910976,1716615384431,150.0,0.00012144,2]
[327910977,1716615394116,360.0,0.00012126,2]
[327910978,1716615443244,1677.87,0.00012102,2]
[327910979,1716615503686,4382.03465739,0.00012102,2]
[327910980,1716615598370,7342.38,0.00012095,2]
[327910981,1716615600273,250.0,0.00012104,2]
[327910982,1716615607059,23900.0,0.00012118,2]
[327910984,1716615659894,754.49,0.00012197,2]
[327910985,1716615705872,249.94,0.0001022,2]
[327910986,1716615716202,200.0,0.0001212,2]
[327910987,1716615801395,250.0,0.00011881,2]
[327910989,1716615828124,500.0,0.00011881,2]
[327910990,1716615919561,298.11,0.00011873,2]
[327910991,1716615919752,298.11,0.00011876,2]
[327910992,1716615919964,298.11,0.00011879,2]
[327910993,1716615920191,298.11,0.00011882,2]
[327910994,1716615920390,298.11,0.00011885,2]
[327910995,1716615920606,298.11,0.00011888,2]
[327910996,1716615920806,298.11,0.00011891,2]
[327910997,1716615921209,298.11,0.00011895,2]
[327910998,1716615921413,298.11,0.00011898,2]
[327910999,1716615921841,298.11,0.00011901,2]
[327911000,1716615922046,298.11,0.00011904,2]
[327911001,1716615922242,298.11,0.00011907,2]
[327911002,1716615922448,298.11,0.0001191,2]
[327911003,1716615922654,298.11,0.00011913,2]
[327911004,1716615922871,298.11,0.00011916,2]
[327911005,1716615923073,298.11,0.00011919,2]
[327911006,1716615923486,298.11,0.00011923,2]
[327911007,1716615923687,298.11,0.00011926,2]
[327911008,1716615923892,298.11,0.00011929,2]
[327911009,1716615924117,298.11,0.00011932,2]
[327911010,1716615927566,712.0,0.00011873,2]
[327911011,1716615938211,1797.81,0.00011873,2]
[327911012,1716615968996,171.47,0.0001187,2]
[327911014,1716616101644,250.0,0.00011853,2]
[327911015,1716616102752,10087.37,0.00011853,2]
[327911034,1716616232487,-746.8,0.00012291,2]
[327911035,1716616232497,-746.8,0.00012325,2]
[327911036,1716616232508,-165.56535883,0.00012354,2]
[327911037,1716616232518,-746.8,0.00012359,2]
[327911038,1716616232527,-746.8,0.00012392,2]
[327911039,1716616232537,-746.8,0.00012426,2]
[327911040,1716616232547,-4601.56659857,0.00012454,2]
[327911041,1716616232557,-746.8,0.0001246,2]
[327911042,1716616232566,-746.8,0.00012494,2]
[327911043,1716616232576,-9.03663988,0.00012527,2]
[327911044,1716616232593,-737.76336012,0.00012527,2]
[327911045,1716616232602,-746.8,0.00012561,2]
[327911046,1716616232611,-746.8,0.00012595,2]
[327911048,1716616232621,-300.0,0.00012618,2]
[327911050,1716616232631,-499.99,0.00012618,2]
[327911052,1716616232640,-534.25,0.00012619,2]
[327911054,1716616232650,-746.8,0.00012628,2]
[327911056,1716616232660,-746.8,0.00012662,2]
[327911058,1716616232669,-746.8,0.00012696,2]
[327911060,1716616232679,-746.8,0.00012729,2]
[327911062,1716616232688,-746.8,0.00012763,2]
[327911064,1716616232697,-746.8,0.00012797,2]
[327911066,1716616232708,-2712.7051,0.00012799,2]
[327911068,1716616232717,-746.8,0.00012831,2]
[327911070,1716616232727,-1564.28040901,0.00012855,2]
[327911072,1716616232738,-746.8,0.00012864,2]
[327911074,1716616232747,-489.74976,0.0001287,2]
[327911075,1716616232757,-200.0,0.00012896,2]
[327911076,1716616232767,-500.0,0.00012896,2]
[327911077,1716616232776,-746.8,0.00012898,2]
[327911078,1716616232786,-210.8378,0.00012899,2]
[327911079,1716616232796,-1004.10371221,0.00012899,2]
[327911080,1716616232806,-783.7087,0.000129,2]
[327911081,1716616232816,-6491.85917975,0.000129,2]
[327911082,1716616232825,-180.24310631,0.000129,2]
[327911083,1716616232835,-13513.8437,0.000129,2]
[327911084,1716616232845,-2898.5314,0.000129,2]
[327911085,1716616232854,-175.54842973,0.000129,2]
[327911086,1716616232863,-2218.99024186,0.000129,2]
[327911087,1716616232873,-317.50691304,0.000129,2]
[327911088,1716616232882,-514.91676069,0.000129,2]
[327911089,1716616232893,-1938.777,0.000129,2]
[327911090,1716616232903,-1010.0,0.000129,2]
[327911091,1716616232917,-330.15194706,0.000129,2]
[327911092,1716616232927,-746.8,0.00012932,2]
[327911093,1716616232936,-409.475398,0.00012989,2]
[327911094,1716616232945,-1286.9066883,0.00012989,2]
[327911095,1716616232957,-8617.2969421,0.00012989,2]
[327911096,1716616232966,-326.2476443,0.00012989,2]
[327911097,1716616232976,-4312.2823556,0.00012989,2]
[327911098,1716616232987,-654.46569565,0.00012989,2]
[327911099,1716616232997,-193.41469912,0.0001299,2]
[327911100,1716616233007,-151.22,0.0001299,2]
[327911101,1716616233017,-151.22,0.0001299,2]
[327911102,1716616233027,-151.22,0.0001299,2]
[327911103,1716616233037,-151.22,0.0001299,2]
[327911104,1716616233047,-151.22,0.0001299,2]
[327911105,1716616233057,-151.22,0.0001299,2]
[327911106,1716616233067,-714.964306,0.00012998,2]
[327911107,1716616233076,-301.15143758,0.00012998,2]
[327911108,1716616233086,-258.84995201,0.00012998,2]
[327911109,1716616233096,-723.78836497,0.00012998,2]
[327911110,1716616233105,-213.29298768,0.00012998,2]
[327911111,1716616233115,-32237.84674441,0.00012999,2]
[327911112,1716616233124,-1591.06562013,0.00012999,2]
[327911113,1716616233134,-319752.55088815,0.00013,2]
[327911116,1716616237521,-2425.01160574,0.00013,2]
[327911125,1716616240106,-4015.0,0.00013,2]
[327911134,1716616242520,-2173.7898,0.000129,2]
[327911135,1716616242530,-14268.60485687,0.00013,2]
[327911136,1716616242539,-22015.726636,0.00013,2]
[327911144,1716616243409,-302.41152115,0.00013,2]
[327911145,1716616243421,-5000.59770002,0.00013,2]
[327911146,1716616243432,-337.27249606,0.00013,2]
[327911147,1716616243443,-500.0,0.00013,2]
[327911148,1716616243455,-2127.73990406,0.00013,2]
[327911149,1716616243467,-2348.36522214,0.00013,2]
[327911150,1716616243478,-1867.04048784,0.00013,2]
[327911151,1716616243489,-2686.1764348,0.00013,2]
[327911155,1716616245694,-317.30798841,0.00013,2]
[327911156,1716616247877,287.22,0.00012192,2]
[327911159,1716616397736,1000.0,0.00030167,120]
[327911160,1716616747012,272.85,0.000105,2]
[327911186,1716616913010,569.6,0.00012188,2]
[327911187,1716616915779,1650.91,0.00012188,2]
[327911189,1716617040149,304.33373163,0.00031,120]
[327911190,1716617052198,250.0,0.00012166,2]
[327911191,1716617129480,230.052515,0.0003,34]
[327911198,1716617417676,250.0,0.00012061,2]
[327911199,1716617421072,171.47,0.00012071,2]
[327911207,1716617433015,-155.0,0.00012285,2]
[327911208,1716617433024,-345.5352807,0.00012286,2]
[327911209,1716617433038,-278.58355291,0.00012286,2]
[327911210,1716617433048,-156.28,0.00012293,2]
[327911211,1716617433057,-9.90124804,0.00012327,2]
[327911212,1716617433230,-716.59388063,0.00012327,2]
[327911213,1716617433242,-2657.0803135,0.00012327,2]
[327911241,1716617438578,-643.9738315,0.00012284,2]
[327911242,1716617438589,-134.71896799,0.00012327,2]
[327911243,1716617438823,-31879.60694014,0.00012327,2]
[327911244,1716617438833,-19509.74370795,0.00012328,2]
[327911245,1716617438845,-156.28,0.00012453,2]
[327911246,1716617438859,-156.28,0.00012614,2]
[327911247,1716617438873,-1000.0,0.000127,2]
[327911248,1716617438889,-908.61,0.000127,2]
[327911249,1716617438903,-272.85,0.00012763,2]
[327911251,1716617438915,-156.28,0.00012774,2]
[327911253,1716617438927,-172.93,0.00012807,2]
[327911254,1716617438940,-200.0,0.00012896,2]
[327911255,1716617438953,-500.0,0.00012896,2]
[327911256,1716617438966,-972.35078202,0.00012897,2]
[327911257,1716617438980,-9570.57316349,0.00012898,2]
[327911258,1716617438995,-463.42508463,0.00012898,2]
[327911259,1716617439007,-378.83157048,0.00012898,2]
[327911260,1716617439018,-155.14534617,0.00012899,2]
[327911261,1716617439030,-832.3116,0.000129,2]
[327911262,1716617439044,-10003.5723,0.000129,2]
[327911263,1716617439058,-34961.9974,0.000129,2]
[327911264,1716617439070,-5950.87091478,0.000129,2]
[327911265,1716617439082,-285.11291287,0.000129,2]
[327911266,1716617439094,-281.02675907,0.000129,2]
[327911267,1716617439108,-330.15194706,0.000129,2]
[327911268,1716617439119,-156.28,0.00012934,2]
[327911269,1716617439132,-3049.7354246,0.00012987,2]
[327911270,1716617439145,-2238.4245025,0.00012989,2]
[327911271,1716617439158,-6828.1577399,0.00012989,2]
[327911272,1716617439170,-570.7606515,0.00012989,2]
[327911273,1716617439182,-11744.1095422,0.00012989,2]
[327911274,1716617439192,-188.92317477,0.0001299,2]
[327911275,1716617439202,-151.21,0.0001299,2]
[327911276,1716617439214,-151.21,0.0001299,2]
[327911277,1716617439226,-151.21,0.0001299,2]
[327911278,1716617439239,-151.21,0.0001299,2]
[327911279,1716617439251,-151.21,0.0001299,2]
[327911280,1716617439263,-151.21,0.0001299,2]
[327911281,1716617439275,-155.0,0.00012998,2]
[327911282,1716617439286,-205.01098892,0.00012998,2]
[327911283,1716617439299,-155.36437065,0.00012998,2]
[327911284,1716617439312,-1446.67448387,0.00012998,2]
[327911285,1716617439326,-419.18534484,0.00012998,2]
[327911286,1716617439339,-2061.51629876,0.00012998,2]
[327911287,1716617439350,-1248.10825523,0.00012998,2]
[327911288,1716617439361,-537.2775495,0.00012998,2]
[327911289,1716617439371,-155.41813531,0.00012998,2]
[327911290,1716617439382,-155.0,0.00012998,2]
[327911291,1716617439393,-5273.17210479,0.00012998,2]
[327911292,1716617439406,-167.59589683,0.00012998,2]
[327911293,1716617439418,-2889.39399766,0.00012998,2]
[327911294,1716617439431,-349.10293235,0.00012998,2]
[327911295,1716617439442,-247.76966541,0.00012998,2]
[327911296,1716617439452,-189.24328418,0.00012998,2]
[327911297,1716617439466,-2456.19695707,0.00012998,2]
[327911298,1716617439478,-1139.55302842,0.00012998,2]
[327911299,1716617439491,-158.80702101,0.00012998,2]
[327911300,1716617439503,-155.38934503,0.00012998,2]
[327911301,1716617439515,-904.75181245,0.00012998,2]
[327911302,1716617439528,-400.0,0.00012998,2]
[327911303,1716617439541,-400.0,0.00012998,2]
[327911304,1716617439556,-264.24,0.00012998,2]
[327911305,1716617439571,-1046.810318,0.00012998,2]
[327911306,1716617439582,-1512.76334421,0.00012998,2]
[327911307,1716617439592,-4349.5364756,0.00012998,2]
[327911308,1716617439604,-155.56623545,0.00012998,2]
[327911309,1716617439615,-158.23197104,0.00012998,2]
[327911310,1716617439626,-155.51525622,0.00012998,2]
[327911311,1716617439638,-229.72136407,0.00012998,2]
[327911312,1716617439650,-208.5822665,0.00012998,2]
[327911313,1716617439660,-209.82674129,0.00012998,2]
[327911314,1716617439671,-155.51704586,0.00012998,2]
[327911315,1716617439683,-219.08740121,0.00012998,2]
[327911316,1716617439694,-195.85639147,0.00012998,2]
[327911317,1716617439706,-408.3633624,0.00012998,2]
[327911318,1716617439717,-222.84697524,0.00012998,2]
[327911319,1716617439728,-195.60542276,0.00012998,2]
[327911320,1716617439738,-3089.44753044,0.00012998,2]
[327911321,1716617439749,-166.11071839,0.00012998,2]
[327911322,1716617439761,-296.60491091,0.00012999,2]
[327911323,1716617439772,-10945.59975113,0.00012999,2]
[327911324,1716617439783,-47873.18990771,0.00013,2]
[327911333,1716617440719,-528.18244504,0.00013,2]
[327911334,1716617440943,-357.6663979,0.00013,2]
[327911335,1716617440957,-377.2800005,0.00013,2]
[327911336,1716617440976,-1110.82691993,0.00013,2]
[327911337,1716617440992,-6067.87055958,0.00013,2]
[327911349,1716617443341,-2177.6311843,0.00013,2]
[327911350,1716617443994,-1702.80149314,0.00013,2]
[327911351,1716617444009,-509.50225758,0.00013,2]
[327911353,1716617446787,-355.01537129,0.00012999,2]
[327911354,1716617446797,-181.89269478,0.00012999,2]
[327911355,1716617446806,-18322.79187463,0.00013,2]
[327911356,1716617446818,-6404.71,0.00013,2]
[327911357,1716617489708,-3055.224914,0.00012986,2]
[327911358,1716617489730,-1000.0,0.00012996,2]
[327911359,1716617489753,-322.02254067,0.00012997,2]
[327911360,1716617489977,-277.3658757,0.00012998,2]
[327911361,1716617490000,-31303.61644543,0.00012998,2]
[327911362,1716617490022,-686.67265106,0.00012998,2]
[327911363,1716617490045,-259.00448085,0.00012998,2]
[327911364,1716617490066,-155.28365723,0.00012998,2]
[327911365,1716617490088,-254.66926552,0.00012998,2]
[327911366,1716617490111,-344.66778136,0.00012998,2]
[327911367,1716617490132,-207.5485086,0.00012998,2]
[327911368,1716617490153,-1180.1693692,0.00012999,2]
[327911369,1716617490178,-3647.0,0.00012999,2]
[327911370,1716617490199,-226.35953617,0.00012999,2]
[327911371,1716617490221,-308.14165273,0.00012999,2]
[327911372,1716617490243,-643.9738315,0.00012999,2]
[327911373,1716617490268,-5022260.56887827,0.00013,2]
[327911374,1716617490290,-765970.34868154,0.00013,2]
[327911375,1716617490314,-1167897.36193017,0.00013,2]
[327911376,1716617507241,753.21042176,0.00011698,2]
[327911377,1716617520865,317.57,0.00011655,2]
[327911378,1716617578410,15016.46342445,0.00011655,2]
[327911379,1716617578436,41335.72565075,0.00011655,2]
[327911382,1716617911113,-873.16842202,0.00011554,2]
[327911383,1716617935954,314.88362673,0.00011069,2]
[327911384,1716617941783,4748.08552782,0.00011554,2]
[327911385,1716617945306,753.21042176,0.00011,2]
[327911387,1716617957414,362.34453967,0.00011554,2]
[327911388,1716617961252,19741.49598061,0.00011554,2]
[327911389,1716617962842,180.28989834,0.00011554,2]
[327911390,1716617975419,364.87792406,0.00011554,2]
[327911391,1716617978846,180.28989834,0.00011554,2]
[327911392,1716617981259,19741.49598061,0.00011554,2]
[327911393,1716617994870,180.28989834,0.00011554,2]
[327911394,1716617999254,19730.13627126,0.00011554,2]
[327911395,1716618002997,124829.43161044,0.00011554,2]
[327911396,1716618019772,507.73,9.839e-05,2]
[327911397,1716618070357,20231.50635997,9.839e-05,2]
[327911398,1716618071514,946.05601497,9.839e-05,2]
[327911399,1716618074011,19741.49598061,9.839e-05,2]
[327911400,1716618077833,428.66255048,9.838e-05,2]
[327911401,1716618078724,155.0,9.839e-05,2]
[327911402,1716618079503,547909.36782135,9.839e-05,2]
[327911403,1716618084372,20231.50635997,9.839e-05,2]
[327911404,1716618085730,576.97830524,9.839e-05,2]
[327911405,1716618085818,13165.63839407,9.839e-05,2]
[327911406,1716618092738,305.43320474,9.839e-05,2]
[327911407,1716618093204,7522.80028291,9.839e-05,2]
[327911408,1716618099501,547909.36782135,9.839e-05,2]
[327911409,1716618100364,20231.50635997,9.839e-05,2]
[327911410,1716618111140,7522.80028291,9.839e-05,2]
[327911411,1716618119503,547909.36782135,9.839e-05,2]
[327911412,1716618120382,20231.50635997,9.839e-05,2]
[327911413,1716618127246,186.73547055,9.839e-05,2]
[327911414,1716618138391,14227.37252823,9.839e-05,2]
[327911415,1716618143510,47446.49692092,9.839e-05,2]
[327911416,1716618143532,270937.02259076,9.839e-05,2]
[327911417,1716618151875,155.0,9.839e-05,2]
[327911418,1716618173932,155.33997713,9.839e-05,2]
[327911419,1716618272332,155.0,9.839e-05,2]
[327911420,1716618288326,155.0,9.839e-05,2]
[327911421,1716618304334,254.00964982,9.839e-05,2]
[327911422,1716618470879,4532.288747,9.972e-05,2]
[327911423,1716618516084,524.8,8.909e-05,2]
[327911428,1716618546218,204.83457618,0.00010019,2]
[327911429,1716618552235,259.08174527,0.00010019,2]
[327911431,1716618573177,-325.15285647,0.0001002,2]
[327911432,1716618573196,-428.66255048,0.0001002,2]
[327911433,1716618573216,-150.0,0.00010076,2]
[327911434,1716618573234,-1981.23449305,0.00010077,2]
[327911435,1716618579465,180.28989834,0.00010019,2]
[327911436,1716618591454,180.28989834,0.00010019,2]
[327911437,1716618611460,180.28989834,0.00010019,2]
[327911447,1716618631804,-318.64482262,0.00010077,2]
[327911452,1716618632024,-945.02971513,0.00010077,2]
[327911453,1716618632108,-1346.78709982,0.00010077,2]
[327911454,1716618632119,-2051.93696938,0.00010077,2]
[327911455,1716618632129,-153.86904226,0.00010178,2]
[327911456,1716618632139,-452.9143488,0.0001028,2]
[327911457,1716618632148,-314.88362673,0.00010309,2]
[327911458,1716618632157,-162.19,0.00010354,2]
[327911459,1716618632166,-250.0,0.00010383,2]
[327911460,1716618632175,-301.05083975,0.00010487,2]
[327911461,1716618632185,-250.0,0.0001051,2]
[327911462,1716618632196,-499.99,0.0001051,2]
[327911463,1716618632206,-180.55,0.00010517,2]
[327911464,1716618632216,-1000.0,0.00010553,2]
[327911465,1716618632227,-150.99,0.00010553,2]
[327911466,1716618632239,-150.0,0.00010761,2]
[327911467,1716618632248,-1225.0020089,0.00010762,2]
[327911468,1716618632259,-374.10436896,0.00010762,2]
[327911470,1716618632270,-444.06,0.00010762,2]
[327911472,1716618632282,-1036.61362214,0.00010762,2]
[327911474,1716618632291,-171.32,0.00010769,2]
[327911476,1716618632301,-200.0,0.00010785,2]
[327911478,1716618632310,-211.23,0.00010785,2]
[327911480,1716618632319,-940.45,0.00010787,2]
[327911482,1716618632329,-211.23,0.00010788,2]
[327911484,1716618632339,-211.23,0.00010791,2]
[327911486,1716618632348,-160.89,0.00010791,2]
[327911488,1716618632357,-211.23,0.00010793,2]
[327911489,1716618632366,-200.0,0.00010796,2]
[327911490,1716618632375,-211.23,0.00010796,2]
[327911491,1716618632384,-70.90934826,0.00010799,2]
[327911492,1716618633457,180.28989834,0.00010019,2]
[327911493,1716618638529,-140.32065174,0.00010799,2]
[327911494,1716618638539,-211.23,0.00010802,2]
[327911495,1716618638550,-211.23,0.00010805,2]
[327911496,1716618638559,-211.23,0.00010808,2]
[327911497,1716618638569,-7199.37034097,0.00010808,2]
[327911498,1716618638781,-419.52965903,0.00010808,2]
[327911499,1716618638791,-211.23,0.00010811,2]
[327911500,1716618638800,-211.23,0.00010813,2]
[327911501,1716618638810,-211.23,0.00010816,2]
[327911502,1716618638819,-211.23,0.00010819,2]
[327911503,1716618638828,-211.23,0.00010822,2]
[327911504,1716618638837,-211.23,0.00010825,2]
[327911505,1716618638847,-211.23,0.00010828,2]
[327911506,1716618638856,-211.23,0.0001083,2]
[327911507,1716618638866,-211.23,0.00010833,2]
[327911508,1716618638875,-500.0,0.00010836,2]
[327911509,1716618638890,-211.23,0.00010836,2]
[327911510,1716618638899,-160.89,0.00010838,2]
[327911511,1716618638909,-211.23,0.00010839,2]
[327911512,1716618638918,-324.99711042,0.00010853,2]
[327911513,1716618638930,-23900.0,0.00010854,2]
[327911514,1716618638939,-754.49,0.00010866,2]
[327911515,1716618638953,-160.89,0.00010885,2]
[327911516,1716618638963,-160.89,0.00010932,2]
[327911517,1716618638972,-8526.73,0.00010959,2]
[327911518,1716618638982,-150.0,0.00010959,2]
[327911519,1716618638991,-488.55,0.00010959,2]
[327911520,1716618639001,-927.6,0.00010959,2]
[327911521,1716618639010,-157.69055943,0.00010976,2]
[327911522,1716618639019,-160.89,0.00010979,2]
[327911523,1716618639029,-750.94633531,0.00011,2]
[327911524,1716618639039,-160.89,0.00011025,2]
[327911525,1716618639049,-160.89,0.00011072,2]
[327911526,1716618639059,-160.89,0.00011119,2]
[327911527,1716618639068,-160.89,0.00011166,2]
[327911528,1716618639078,-524.8,0.00011173,2]
[327911529,1716618639088,-160.89,0.00011213,2]
[327911530,1716618639098,-160.89,0.0001126,2]
[327911531,1716618639108,-160.89,0.00011306,2]
[327911532,1716618639120,-160.89,0.00011353,2]
[327911533,1716618639131,-344.29,0.00011471,2]
[327911534,1716618639141,-344.29,0.00011474,2]
[327911535,1716618639151,-344.29,0.00011477,2]
[327911536,1716618639161,-344.29,0.0001148,2]
[327911537,1716618639171,-177.55,0.00011482,2]
[327911538,1716618639182,-344.29,0.00011483,2]
[327911539,1716618639192,-344.29,0.00011486,2]
[327911540,1716618639203,-344.29,0.00011489,2]
[327911541,1716618639213,-344.29,0.00011492,2]
[327911542,1716618639223,-344.29,0.00011495,2]
[327911543,1716618639232,-344.29,0.00011498,2]
[327911544,1716618639242,-344.29,0.00011501,2]
[327911545,1716618639252,-344.29,0.00011504,2]
[327911546,1716618639262,-344.29,0.00011507,2]
[327911547,1716618639272,-344.29,0.0001151,2]
[327911548,1716618639281,-344.29,0.00011513,2]
[327911549,1716618639290,-344.29,0.00011516,2]
[327911550,1716618639300,-344.29,0.00011519,2]
[327911551,1716618639310,-344.29,0.00011522,2]
[327911552,1716618639319,-344.29,0.00011525,2]
[327911553,1716618639330,-344.29,0.00011528,2]
[327911554,1716618639339,-156.5884,0.00011552,2]
[327911555,1716618639349,-7161.4679,0.00011553,2]
[327911556,1716618639359,-884.233088,0.00011553,2]
[327911557,1716618639371,-180.59937556,0.00011554,2]
[327911558,1716618639381,-6467.51229612,0.00011555,2]
[327911559,1716618639392,-368.5064,0.00011555,2]
[327911560,1716618639402,-166.01147204,0.00011652,2]
[327911561,1716618639412,-602.7438995,0.00011652,2]
[327911562,1716618639422,-208.35149808,0.00011652,2]
[327911563,1716618639432,-1406.6772788,0.00011652,2]
[327911564,1716618639442,-3421.95664318,0.00011652,2]
[327911565,1716618639452,-686.8929503,0.00011652,2]
[327911566,1716618639461,-1796.19166876,0.00011652,2]